[Event "*** Titled Tuesday Blitz"]
[Site "Chess.com"]
[Date "2021.02.09"]
[Round "7"]
[White "DanielTitichoca"]
[Black "SkippingLaptop"]
[Result "0-1"]
[WhiteElo "2275"]
[BlackElo "2079"]
[TimeControl "180+1"]
[EndTime "11:15:46 PST"]
[Termination "SkippingLaptop won by resignation"]

1. e4 {[%clk 0:03:00.9]} 1... c5 {[%clk 0:02:55]} 2. Nf3 {[%clk 0:03:01]} 2...
Nc6 {[%clk 0:02:53.9]} 3. d4 {[%clk 0:03:01.9]} 3... cxd4 {[%clk 0:02:52.6]} 4.
Nxd4 {[%clk 0:03:02.8]} 4... Nf6 {[%clk 0:02:51.5]} 5. Nc3 {[%clk 0:03:03.3]}
5... e5 {[%clk 0:02:50.6]} 6. Ndb5 {[%clk 0:03:02.8]} 6... d6 {[%clk 0:02:48.6]}
7. Bg5 {[%clk 0:03:02.6]} 7... a6 {[%clk 0:02:44.4]} 8. Na3 {[%clk 0:03:00.5]}
8... b5 {[%clk 0:02:36]} 9. Nd5 {[%clk 0:02:57.9]} 9... Be7 {[%clk 0:02:35.3]}
10. Bxf6 {[%clk 0:02:56.9]} 10... Bxf6 {[%clk 0:02:35.3]} 11. c3 {[%clk
0:02:57.8]} 11... O-O {[%clk 0:02:32.6]} 12. Nc2 {[%clk 0:02:56.3]} 12... Bg5
{[%clk 0:02:31.3]} 13. h4 {[%clk 0:02:55]} 13... Bh6 {[%clk 0:02:28.8]} 14. g3
{[%clk 0:02:54.6]} 14... Rb8 {[%clk 0:02:21.5]} 15. a3 {[%clk 0:02:52.9]} 15...
g6 {[%clk 0:02:18.3]} 16. h5 {[%clk 0:02:49.9]} 16... Kg7 {[%clk 0:02:10.4]} 17.
Bh3 {[%clk 0:02:45.9]} 17... Be6 {[%clk 0:02:08.3]} 18. Nce3 {[%clk 0:02:42.5]}
18... Bxe3 {[%clk 0:02:06.7]} 19. Nxe3 {[%clk 0:02:41.2]} 19... f5 {[%clk
0:02:03.1]} 20. hxg6 {[%clk 0:02:39.7]} 20... hxg6 {[%clk 0:02:02.4]} 21. exf5
{[%clk 0:02:38.5]} 21... Bxf5 {[%clk 0:01:53.6]} 22. Bxf5 {[%clk 0:02:30.3]}
22... gxf5 {[%clk 0:01:46.5]} 23. Qh5 {[%clk 0:02:30.9]} 23... Rh8 {[%clk
0:01:34.2]} 24. Nxf5+ {[%clk 0:02:25.9]} 24... Kf6 {[%clk 0:01:31.7]} 25. Qxh8+
{[%clk 0:02:23.5]} 25... Qxh8 {[%clk 0:01:30.9]} 26. Rxh8 {[%clk 0:02:24.1]}
26... Rxh8 {[%clk 0:01:30.6]} 27. Nh4 {[%clk 0:02:22.3]} 27... e4 {[%clk
0:01:23]} 28. O-O-O {[%clk 0:02:22.6]} 28... Ke6 {[%clk 0:01:18.1]} 29. Re1
{[%clk 0:02:18.8]} 29... d5 {[%clk 0:01:17.6]} 30. Kd2 {[%clk 0:02:15.4]} 30...
Ne5 {[%clk 0:01:16.7]} 31. Ke3 {[%clk 0:02:16.3]} 31... Nc4+ {[%clk 0:01:14.2]}
32. Kd4 {[%clk 0:02:11.7]} 32... Nxb2 {[%clk 0:01:11.7]} 33. f3 {[%clk
0:02:12.2]} 33... Rc8 {[%clk 0:01:05.8]} 34. Ke3 {[%clk 0:02:05.3]} 34... Rxc3+
{[%clk 0:01:04.7]} 35. Kf4 {[%clk 0:02:06]} 35... Nd3+ {[%clk 0:01:03]} 36. Kg5
{[%clk 0:02:05]} 36... Nxe1 {[%clk 0:01:02.7]} 0-1

[Event "*** Titled Tuesday Blitz"]
[Site "Chess.com"]
[Date "2021.02.09"]
[Round "7"]
[White "Murad_Ibrahimli"]
[Black "goldihouse"]
[Result "1-0"]
[WhiteElo "2722"]
[BlackElo "2540"]
[TimeControl "180+1"]
[EndTime "11:15:47 PST"]
[Termination "Murad_Ibrahimli won by resignation"]

1. Nf3 {[%clk 0:03:00.9]} 1... Nf6 {[%clk 0:02:59.3]} 2. c4 {[%clk 0:03:00.5]}
2... e6 {[%clk 0:02:59.3]} 3. Nc3 {[%clk 0:03:00]} 3... Bb4 {[%clk 0:02:57.8]}
4. g3 {[%clk 0:02:57.8]} 4... O-O {[%clk 0:02:57.4]} 5. Bg2 {[%clk 0:02:57.5]}
5... d5 {[%clk 0:02:58]} 6. d4 {[%clk 0:02:55]} 6... c6 {[%clk 0:02:57.7]} 7.
Qd3 {[%clk 0:02:39.7]} 7... b6 {[%clk 0:02:53.6]} 8. O-O {[%clk 0:02:39.6]} 8...
dxc4 {[%clk 0:02:50.1]} 9. Qxc4 {[%clk 0:02:39]} 9... Ba6 {[%clk 0:02:50.3]} 10.
Qxb4 {[%clk 0:02:38.6]} 10... Nd5 {[%clk 0:02:38.8]} 11. Nxd5 {[%clk 0:02:35.7]}
11... cxd5 {[%clk 0:02:39.7]} 12. Re1 {[%clk 0:02:33.5]} 12... Nc6 {[%clk
0:02:35.1]} 13. Qa3 {[%clk 0:02:32.8]} 13... Bb7 {[%clk 0:02:33.4]} 14. Bd2
{[%clk 0:02:30.1]} 14... Rc8 {[%clk 0:02:31.9]} 15. Rac1 {[%clk 0:02:28]} 15...
f6 {[%clk 0:02:32.2]} 16. e3 {[%clk 0:02:22.5]} 16... Qd7 {[%clk 0:02:30.8]} 17.
Bf1 {[%clk 0:02:21.6]} 17... Rc7 {[%clk 0:02:31]} 18. Rc3 {[%clk 0:02:18.3]}
18... Rfc8 {[%clk 0:02:31.9]} 19. Rec1 {[%clk 0:02:18.6]} 19... g5 {[%clk
0:02:30.5]} 20. Ne1 {[%clk 0:02:12.9]} 20... e5 {[%clk 0:02:26.1]} 21. Bb5
{[%clk 0:01:58]} 21... a6 {[%clk 0:02:25.2]} 22. Bxc6 {[%clk 0:01:57.1]} 22...
Bxc6 {[%clk 0:02:24.9]} 23. dxe5 {[%clk 0:01:47]} 23... fxe5 {[%clk 0:02:23.8]}
24. Nd3 {[%clk 0:01:47.5]} 24... Qf5 {[%clk 0:01:43.5]} 25. Nb4 {[%clk
0:01:40.3]} 25... Bb5 {[%clk 0:01:40.7]} 26. Rxc7 {[%clk 0:01:34.9]} 26... Rxc7
{[%clk 0:01:41.6]} 27. Rxc7 {[%clk 0:01:30.6]} 27... Bc4 {[%clk 0:01:41.1]} 28.
b3 {[%clk 0:01:20.8]} 28... Be2 {[%clk 0:01:38.2]} 29. Nxd5 {[%clk 0:01:14.4]}
1-0

[Event "*** Titled Tuesday Blitz"]
[Site "Chess.com"]
[Date "2021.02.09"]
[Round "7"]
[White "AlexSuv"]
[Black "EdmundPlayer"]
[Result "1-0"]
[WhiteElo "2453"]
[BlackElo "2185"]
[TimeControl "180+1"]
[EndTime "11:15:49 PST"]
[Termination "AlexSuv won by resignation"]

1. d4 {[%clk 0:03:00.9]} 1... d5 {[%clk 0:02:58.6]} 2. c4 {[%clk 0:02:59.6]}
2... dxc4 {[%clk 0:02:59.5]} 3. Nf3 {[%clk 0:02:55.7]} 3... Nf6 {[%clk
0:02:59.5]} 4. e3 {[%clk 0:02:55.6]} 4... Bg4 {[%clk 0:02:59.6]} 5. Bxc4 {[%clk
0:02:54.3]} 5... e6 {[%clk 0:02:59.6]} 6. h3 {[%clk 0:02:53.8]} 6... Bh5 {[%clk
0:02:58.3]} 7. Nc3 {[%clk 0:02:52.1]} 7... a6 {[%clk 0:02:57.4]} 8. g4 {[%clk
0:02:51]} 8... Bg6 {[%clk 0:02:56.9]} 9. Ne5 {[%clk 0:02:51.5]} 9... Nbd7 {[%clk
0:02:55.4]} 10. Nxg6 {[%clk 0:02:48.3]} 10... hxg6 {[%clk 0:02:56.3]} 11. Bf1
{[%clk 0:02:48.7]} 11... c6 {[%clk 0:02:50.9]} 12. Bg2 {[%clk 0:02:46.7]} 12...
Qc7 {[%clk 0:02:50.5]} 13. Bd2 {[%clk 0:02:40.8]} 13... Bd6 {[%clk 0:02:45.2]}
14. Qb3 {[%clk 0:02:35.1]} 14... O-O-O {[%clk 0:02:35.9]} 15. O-O-O {[%clk
0:02:33]} 15... Kb8 {[%clk 0:02:32.9]} 16. Kb1 {[%clk 0:02:31.4]} 16... Rc8
{[%clk 0:02:25.4]} 17. Rc1 {[%clk 0:02:29.5]} 17... Qb6 {[%clk 0:02:20.8]} 18.
Qc2 {[%clk 0:02:05.2]} 18... Rhd8 {[%clk 0:02:02.5]} 19. Rhd1 {[%clk 0:02:01.4]}
19... c5 {[%clk 0:01:28.7]} 20. Na4 {[%clk 0:01:55.6]} 20... Qa7 {[%clk
0:01:28]} 21. dxc5 {[%clk 0:01:54.4]} 21... Nxc5 {[%clk 0:01:26.7]} 22. Nxc5
{[%clk 0:01:54.3]} 22... Bxc5 {[%clk 0:01:01.2]} 23. Bc3 {[%clk 0:01:46.7]}
23... Ka8 {[%clk 0:00:59.9]} 24. Rxd8 {[%clk 0:01:41.5]} 24... Rxd8 {[%clk
0:00:58.3]} 25. Bxf6 {[%clk 0:01:41.7]} 1-0

[Event "*** Titled Tuesday Blitz"]
[Site "Chess.com"]
[Date "2021.02.09"]
[Round "7"]
[White "Indianlad"]
[Black "seorobert1971"]
[Result "1-0"]
[WhiteElo "2909"]
[BlackElo "2717"]
[TimeControl "180+1"]
[EndTime "11:15:55 PST"]
[Termination "Indianlad won by resignation"]

1. c4 {[%clk 0:02:59.5]} 1... c5 {[%clk 0:03:00]} 2. Nc3 {[%clk 0:02:59.5]} 2...
Nc6 {[%clk 0:03:00.9]} 3. Nf3 {[%clk 0:03:00]} 3... Nf6 {[%clk 0:03:01.1]} 4. g3
{[%clk 0:03:00]} 4... g6 {[%clk 0:03:01]} 5. Bg2 {[%clk 0:03:00.5]} 5... Bg7
{[%clk 0:03:01.5]} 6. d4 {[%clk 0:03:01.2]} 6... cxd4 {[%clk 0:03:01.1]} 7. Nxd4
{[%clk 0:03:02.1]} 7... Qa5 {[%clk 0:03:00.2]} 8. O-O {[%clk 0:03:01.6]} 8...
O-O {[%clk 0:03:00.2]} 9. e3 {[%clk 0:03:01.8]} 9... d6 {[%clk 0:02:56.6]} 10.
h3 {[%clk 0:03:01.2]} 10... Bd7 {[%clk 0:02:55.1]} 11. Qe2 {[%clk 0:02:48.6]}
11... Rac8 {[%clk 0:02:54.6]} 12. Bd2 {[%clk 0:02:47.2]} 12... Qa6 {[%clk
0:02:52.2]} 13. b3 {[%clk 0:02:45.1]} 13... Rfe8 {[%clk 0:02:51]} 14. Rfd1
{[%clk 0:02:42.6]} 14... Nxd4 {[%clk 0:02:31.4]} 15. exd4 {[%clk 0:02:42.4]}
15... d5 {[%clk 0:02:24.6]} 16. Nxd5 {[%clk 0:02:36.3]} 16... Nxd5 {[%clk
0:02:24.1]} 17. Bxd5 {[%clk 0:02:37.2]} 17... Bxh3 {[%clk 0:02:22.8]} 18. Qf3
{[%clk 0:02:36.9]} 18... Qf6 {[%clk 0:02:05.5]} 19. Bxb7 {[%clk 0:02:26.3]}
19... Qxf3 {[%clk 0:02:04.2]} 20. Bxf3 {[%clk 0:02:27.2]} 20... Bxd4 {[%clk
0:02:04]} 21. Rac1 {[%clk 0:02:27.6]} 21... e5 {[%clk 0:01:54.5]} 22. Bc3 {[%clk
0:02:19.7]} 22... Bb6 {[%clk 0:01:44.5]} 23. g4 {[%clk 0:02:12.8]} 23... e4
{[%clk 0:01:43.7]} 24. Be2 {[%clk 0:02:12.7]} 24... f5 {[%clk 0:01:29.6]} 25. b4
{[%clk 0:02:10.1]} 25... e3 {[%clk 0:01:22.9]} 26. c5 {[%clk 0:02:10.2]} 26...
Bc7 {[%clk 0:01:15.2]} 27. Bc4+ {[%clk 0:02:06.2]} 27... Kf8 {[%clk 0:01:15]}
28. Rd7 {[%clk 0:02:06.9]} 28... Re7 {[%clk 0:00:59.3]} 29. Rxe7 {[%clk
0:02:06.9]} 29... Kxe7 {[%clk 0:00:59.1]} 30. gxf5 {[%clk 0:02:05.5]} 30...
exf2+ {[%clk 0:00:56.6]} 31. Kxf2 {[%clk 0:02:06.3]} 31... Bxf5 {[%clk
0:00:56.4]} 32. Re1+ {[%clk 0:02:05.5]} 32... Kf8 {[%clk 0:00:56.3]} 33. Bd2
{[%clk 0:02:05.4]} 1-0

[Event "*** Titled Tuesday Blitz"]
[Site "Chess.com"]
[Date "2021.02.09"]
[Round "7"]
[White "IngOscarArdila"]
[Black "ridnani2021"]
[Result "1-0"]
[WhiteElo "2169"]
[BlackElo "2331"]
[TimeControl "180+1"]
[EndTime "11:16:10 PST"]
[Termination "IngOscarArdila won by resignation"]

1. d4 {[%clk 0:03:00.9]} 1... Nf6 {[%clk 0:02:59.8]} 2. c4 {[%clk 0:03:00.7]}
2... g6 {[%clk 0:03:00.2]} 3. Nc3 {[%clk 0:03:00.4]} 3... Bg7 {[%clk 0:03:00]}
4. e4 {[%clk 0:03:00.8]} 4... O-O {[%clk 0:03:00.3]} 5. Nf3 {[%clk 0:03:01.1]}
5... d6 {[%clk 0:03:00.7]} 6. Be2 {[%clk 0:03:01.1]} 6... e5 {[%clk 0:03:00.9]}
7. d5 {[%clk 0:03:01.5]} 7... Nbd7 {[%clk 0:03:00.7]} 8. O-O {[%clk 0:03:01.7]}
8... a5 {[%clk 0:03:00.9]} 9. Bg5 {[%clk 0:03:01.5]} 9... Nc5 {[%clk 0:02:59.6]}
10. Qc2 {[%clk 0:03:01.3]} 10... Bd7 {[%clk 0:02:58.6]} 11. b3 {[%clk
0:03:00.7]} 11... Qe8 {[%clk 0:02:57.7]} 12. a3 {[%clk 0:02:56.8]} 12... Nh5
{[%clk 0:02:53.5]} 13. g3 {[%clk 0:02:51.7]} 13... h6 {[%clk 0:02:52.6]} 14. Be3
{[%clk 0:02:50.9]} 14... b6 {[%clk 0:02:50.6]} 15. b4 {[%clk 0:02:44.2]} 15...
Na6 {[%clk 0:02:49.8]} 16. Rab1 {[%clk 0:02:38]} 16... f5 {[%clk 0:02:48.2]} 17.
exf5 {[%clk 0:02:34]} 17... gxf5 {[%clk 0:02:49.1]} 18. Nh4 {[%clk 0:02:30.7]}
18... axb4 {[%clk 0:02:40.5]} 19. axb4 {[%clk 0:02:23.5]} 19... f4 {[%clk
0:02:40.6]} 20. Bd2 {[%clk 0:02:20.6]} 20... Bf6 {[%clk 0:02:01.6]} 21. Qg6+
{[%clk 0:02:16.9]} 21... Qxg6 {[%clk 0:01:52.6]} 22. Nxg6 {[%clk 0:02:17.8]}
22... Ng7 {[%clk 0:01:47.9]} 23. Nxf8 {[%clk 0:02:17.3]} 23... Rxf8 {[%clk
0:01:48.8]} 24. Ne4 {[%clk 0:02:15.6]} 24... Be7 {[%clk 0:01:46.5]} 25. c5
{[%clk 0:02:09.7]} 25... bxc5 {[%clk 0:01:44]} 26. Bxa6 {[%clk 0:02:09]} 26...
Bf5 {[%clk 0:01:41.8]} 27. f3 {[%clk 0:02:08.6]} 27... fxg3 {[%clk 0:01:40.8]}
28. hxg3 {[%clk 0:02:08.5]} 28... h5 {[%clk 0:01:38.5]} 29. bxc5 {[%clk
0:02:07]} 29... dxc5 {[%clk 0:01:36.3]} 30. Rb7 {[%clk 0:01:58.8]} 30... h4
{[%clk 0:01:34.8]} 31. Rxc7 {[%clk 0:01:56.5]} 31... Bd8 {[%clk 0:01:34.5]} 32.
Rc6 {[%clk 0:01:41.5]} 32... hxg3 {[%clk 0:01:30.5]} 33. Nxg3 {[%clk 0:01:39.5]}
33... Bd7 {[%clk 0:01:29]} 34. Rg6 {[%clk 0:01:38.2]} 34... Be8 {[%clk
0:01:27.9]} 35. Rh6 {[%clk 0:01:25.3]} 35... Nf5 {[%clk 0:01:15.1]} 36. Nxf5
{[%clk 0:01:24.6]} 36... Rxf5 {[%clk 0:01:16]} 37. Bd3 {[%clk 0:01:22]} 1-0

[Event "*** Titled Tuesday Blitz"]
[Site "Chess.com"]
[Date "2021.02.09"]
[Round "7"]
[White "annacramling"]
[Black "Manukyan_Artak"]
[Result "0-1"]
[WhiteElo "2104"]
[BlackElo "2350"]
[TimeControl "180+1"]
[EndTime "11:16:16 PST"]
[Termination "Manukyan_Artak won by resignation"]

1. d4 {[%clk 0:02:58.5]} 1... Nf6 {[%clk 0:02:59]} 2. c4 {[%clk 0:02:57.1]} 2...
g6 {[%clk 0:02:59.9]} 3. Nc3 {[%clk 0:02:51.9]} 3... Bg7 {[%clk 0:03:00.8]} 4.
e4 {[%clk 0:02:51.7]} 4... O-O {[%clk 0:03:00.6]} 5. h3 {[%clk 0:02:50.7]} 5...
d6 {[%clk 0:02:59.5]} 6. Bg5 {[%clk 0:02:46.6]} 6... c5 {[%clk 0:02:57.8]} 7. d5
{[%clk 0:02:45.9]} 7... Qa5 {[%clk 0:02:55.8]} 8. Qd2 {[%clk 0:02:38.3]} 8...
Na6 {[%clk 0:02:53.3]} 9. Nf3 {[%clk 0:02:32.4]} 9... Nc7 {[%clk 0:02:48.2]} 10.
Bd3 {[%clk 0:02:25.5]} 10... Re8 {[%clk 0:02:46.7]} 11. O-O {[%clk 0:02:21.1]}
11... e5 {[%clk 0:02:45.1]} 12. dxe6 {[%clk 0:02:15.7]} 12... Bxe6 {[%clk
0:02:43.1]} 13. Qf4 {[%clk 0:01:56.5]} 13... Nh5 {[%clk 0:02:38]} 14. Qxd6
{[%clk 0:01:52.6]} 14... Na6 {[%clk 0:02:13.1]} 15. Be2 {[%clk 0:01:29.1]} 15...
Qb4 {[%clk 0:01:58.3]} 16. Rab1 {[%clk 0:01:15.6]} 16... Bxc4 {[%clk 0:01:54.3]}
17. Bxc4 {[%clk 0:01:07.3]} 17... Qxc4 {[%clk 0:01:55.2]} 18. Rfc1 {[%clk
0:01:06.7]} 18... Qe6 {[%clk 0:01:45.2]} 19. Qd4 {[%clk 0:01:02.5]} 19... cxd4
{[%clk 0:01:44.1]} 20. Nd5 {[%clk 0:00:43.4]} 20... Qxe4 {[%clk 0:01:38.1]} 0-1

[Event "*** Titled Tuesday Blitz"]
[Site "Chess.com"]
[Date "2021.02.09"]
[Round "7"]
[White "Xeniya2005"]
[Black "chessmause"]
[Result "1-0"]
[WhiteElo "2352"]
[BlackElo "2202"]
[TimeControl "180+1"]
[EndTime "11:16:25 PST"]
[Termination "Xeniya2005 won by resignation"]

1. e4 {[%clk 0:03:00.9]} 1... d6 {[%clk 0:02:58.5]} 2. d4 {[%clk 0:02:58.5]}
2... Nf6 {[%clk 0:02:54.2]} 3. Nc3 {[%clk 0:02:58.1]} 3... c6 {[%clk 0:02:53]}
4. a4 {[%clk 0:02:56]} 4... Bg4 {[%clk 0:02:45.5]} 5. Be2 {[%clk 0:02:42.2]}
5... Bxe2 {[%clk 0:02:42.1]} 6. Ngxe2 {[%clk 0:02:43.1]} 6... e6 {[%clk
0:02:41.6]} 7. h3 {[%clk 0:02:38.7]} 7... d5 {[%clk 0:02:40.8]} 8. e5 {[%clk
0:02:37.1]} 8... Nfd7 {[%clk 0:02:39.9]} 9. Be3 {[%clk 0:02:34.7]} 9... c5
{[%clk 0:02:38.3]} 10. f4 {[%clk 0:02:30.5]} 10... Nc6 {[%clk 0:02:35.1]} 11.
O-O {[%clk 0:02:26.7]} 11... Qb6 {[%clk 0:02:26.1]} 12. Qd2 {[%clk 0:02:05.5]}
12... cxd4 {[%clk 0:02:24.7]} 13. Nxd4 {[%clk 0:02:03.9]} 13... Bc5 {[%clk
0:02:23.5]} 14. Nce2 {[%clk 0:02:03.3]} 14... Nxd4 {[%clk 0:01:59.3]} 15. Bxd4
{[%clk 0:01:42.1]} 15... Bxd4+ {[%clk 0:01:51.4]} 16. Nxd4 {[%clk 0:01:40.6]}
16... Nc5 {[%clk 0:01:47.7]} 17. a5 {[%clk 0:01:30]} 17... Qa6 {[%clk
0:01:15.5]} 18. Qb4 {[%clk 0:01:21.1]} 18... Rc8 {[%clk 0:01:13.4]} 19. Nb5
{[%clk 0:01:13.8]} 19... O-O {[%clk 0:01:09.7]} 20. Nd6 {[%clk 0:01:13.3]} 20...
Rc7 {[%clk 0:01:07.3]} 21. Qd4 {[%clk 0:01:12.4]} 21... f6 {[%clk 0:01:00.3]}
22. b4 {[%clk 0:01:06.5]} 22... Qe2 {[%clk 0:00:52.2]} 23. bxc5 {[%clk
0:01:03.6]} 23... fxe5 {[%clk 0:00:51.2]} 24. fxe5 {[%clk 0:01:03.2]} 1-0

[Event "*** Titled Tuesday Blitz"]
[Site "Chess.com"]
[Date "2021.02.09"]
[Round "7"]
[White "NaciSAN"]
[Black "volunteers1998"]
[Result "1-0"]
[WhiteElo "2307"]
[BlackElo "2059"]
[TimeControl "180+1"]
[EndTime "11:16:27 PST"]
[Termination "NaciSAN won by resignation"]

1. e4 {[%clk 0:03:00.9]} 1... c5 {[%clk 0:02:59.6]} 2. Nf3 {[%clk 0:03:00]} 2...
Nc6 {[%clk 0:02:58.3]} 3. Bb5 {[%clk 0:02:57.9]} 3... d6 {[%clk 0:02:55.9]} 4.
O-O {[%clk 0:02:56.5]} 4... Bd7 {[%clk 0:02:53.4]} 5. Re1 {[%clk 0:02:56.1]}
5... g6 {[%clk 0:02:50.8]} 6. c3 {[%clk 0:02:55.3]} 6... Bg7 {[%clk 0:02:48.3]}
7. h3 {[%clk 0:02:52.6]} 7... a6 {[%clk 0:02:44.8]} 8. Bf1 {[%clk 0:02:52.1]}
8... Nf6 {[%clk 0:02:40.4]} 9. d4 {[%clk 0:02:51.7]} 9... cxd4 {[%clk
0:02:38.1]} 10. cxd4 {[%clk 0:02:52.6]} 10... O-O {[%clk 0:02:35.3]} 11. Nc3
{[%clk 0:02:52.1]} 11... b5 {[%clk 0:02:29.4]} 12. Bd3 {[%clk 0:02:50.8]} 12...
Rc8 {[%clk 0:02:25.1]} 13. Ne2 {[%clk 0:02:47.4]} 13... Qb6 {[%clk 0:02:14.9]}
14. Be3 {[%clk 0:02:45.1]} 14... d5 {[%clk 0:02:09.9]} 15. e5 {[%clk 0:02:42.8]}
15... Ne8 {[%clk 0:02:07]} 16. Ng3 {[%clk 0:02:41.4]} 16... Nc7 {[%clk
0:02:03.3]} 17. Qd2 {[%clk 0:02:40.4]} 17... f6 {[%clk 0:01:53.6]} 18. Rad1
{[%clk 0:02:21.3]} 18... Ne6 {[%clk 0:01:36.6]} 19. exf6 {[%clk 0:02:11.6]}
19... exf6 {[%clk 0:01:34.3]} 20. Bc2 {[%clk 0:02:06.2]} 20... Rfe8 {[%clk
0:01:30]} 21. Bb3 {[%clk 0:02:05.9]} 21... Ne7 {[%clk 0:01:23.2]} 22. Bh6 {[%clk
0:02:01.3]} 22... a5 {[%clk 0:01:18]} 23. a3 {[%clk 0:02:00.7]} 23... b4 {[%clk
0:01:12]} 24. Bxg7 {[%clk 0:01:59.9]} 24... Kxg7 {[%clk 0:01:09]} 25. a4 {[%clk
0:01:56.3]} 25... Rc7 {[%clk 0:00:57.5]} 26. Re2 {[%clk 0:01:55.8]} 26... Nf8
{[%clk 0:00:46.5]} 27. Rde1 {[%clk 0:01:54.5]} 27... Qd6 {[%clk 0:00:37.7]} 28.
Bxd5 {[%clk 0:01:45.9]} 28... Qxd5 {[%clk 0:00:31.3]} 29. Rxe7+ {[%clk
0:01:45.8]} 29... Rxe7 {[%clk 0:00:23.9]} 30. Rxe7+ {[%clk 0:01:46.7]} 1-0

[Event "*** Titled Tuesday Blitz"]
[Site "Chess.com"]
[Date "2021.02.09"]
[Round "7"]
[White "A-S-00"]
[Black "HrvojeZagreb"]
[Result "0-1"]
[WhiteElo "2295"]
[BlackElo "2221"]
[TimeControl "180+1"]
[EndTime "11:16:37 PST"]
[Termination "HrvojeZagreb won by resignation"]

1. d4 {[%clk 0:02:57.3]} 1... e6 {[%clk 0:02:51.2]} 2. e4 {[%clk 0:02:55.4]}
2... d5 {[%clk 0:02:48.2]} 3. e5 {[%clk 0:02:54.2]} 3... c5 {[%clk 0:02:47.7]}
4. c3 {[%clk 0:02:52.6]} 4... Nc6 {[%clk 0:02:46.6]} 5. Nf3 {[%clk 0:02:51.5]}
5... Bd7 {[%clk 0:02:45.7]} 6. a3 {[%clk 0:02:47.9]} 6... f6 {[%clk 0:02:45.6]}
7. exf6 {[%clk 0:02:36]} 7... Nxf6 {[%clk 0:02:46.5]} 8. Bd3 {[%clk 0:02:32.3]}
8... Bd6 {[%clk 0:02:46.1]} 9. O-O {[%clk 0:02:30.7]} 9... O-O {[%clk
0:02:45.6]} 10. Re1 {[%clk 0:02:26.2]} 10... Qc7 {[%clk 0:02:43.1]} 11. Nbd2
{[%clk 0:02:24.1]} 11... e5 {[%clk 0:02:39.8]} 12. dxe5 {[%clk 0:02:22.9]} 12...
Nxe5 {[%clk 0:02:40.7]} 13. Nxe5 {[%clk 0:02:19.9]} 13... Bxe5 {[%clk
0:02:41.6]} 14. g3 {[%clk 0:02:15.5]} 14... Bg4 {[%clk 0:02:36.9]} 15. Qc2
{[%clk 0:02:12.9]} 15... Rf7 {[%clk 0:02:20.7]} 16. f3 {[%clk 0:01:57.6]} 16...
Bxg3 {[%clk 0:02:14]} 17. Re2 {[%clk 0:01:53.4]} 17... c4 {[%clk 0:02:04.6]} 18.
fxg4 {[%clk 0:01:17.1]} 18... cxd3 {[%clk 0:01:57]} 19. Qxd3 {[%clk 0:01:18]}
19... Bf4 {[%clk 0:01:48.3]} 20. Qc2 {[%clk 0:01:18.9]} 20... Nxg4 {[%clk
0:01:42.9]} 21. Qd3 {[%clk 0:01:19.8]} 21... Bxh2+ {[%clk 0:01:37.4]} 22. Kg2
{[%clk 0:01:09.2]} 22... Raf8 {[%clk 0:01:17.3]} 0-1

[Event "*** Titled Tuesday Blitz"]
[Site "Chess.com"]
[Date "2021.02.09"]
[Round "7"]
[White "FMJoseHerrera"]
[Black "Fandorine"]
[Result "0-1"]
[WhiteElo "2583"]
[BlackElo "2844"]
[TimeControl "180+1"]
[EndTime "11:16:46 PST"]
[Termination "Fandorine won by resignation"]

1. Nf3 {[%clk 0:03:00.9]} 1... Nf6 {[%clk 0:03:00.1]} 2. g3 {[%clk 0:02:58.7]}
2... g6 {[%clk 0:03:00.5]} 3. Bg2 {[%clk 0:02:59.1]} 3... Bg7 {[%clk 0:03:01.4]}
4. d3 {[%clk 0:02:59.3]} 4... O-O {[%clk 0:03:02.3]} 5. Nc3 {[%clk 0:02:57.9]}
5... c5 {[%clk 0:03:02.5]} 6. h4 {[%clk 0:02:56.5]} 6... h5 {[%clk 0:03:02]} 7.
Bg5 {[%clk 0:02:55.5]} 7... Nc6 {[%clk 0:03:02.1]} 8. Qd2 {[%clk 0:02:54.3]}
8... d5 {[%clk 0:03:01.3]} 9. Bh6 {[%clk 0:02:53.2]} 9... Bg4 {[%clk 0:03:01.4]}
10. Bxg7 {[%clk 0:02:50.6]} 10... Kxg7 {[%clk 0:03:02.3]} 11. O-O {[%clk
0:02:50.9]} 11... Bxf3 {[%clk 0:03:00.5]} 12. Bxf3 {[%clk 0:02:50]} 12... e6
{[%clk 0:03:00.5]} 13. Bg2 {[%clk 0:02:49.4]} 13... Rb8 {[%clk 0:02:54.9]} 14.
e4 {[%clk 0:02:46.9]} 14... dxe4 {[%clk 0:02:41.4]} 15. Nxe4 {[%clk 0:02:46]}
15... Nxe4 {[%clk 0:02:41.7]} 16. Bxe4 {[%clk 0:02:46.9]} 16... Qd6 {[%clk
0:02:42.1]} 17. Bg2 {[%clk 0:02:43.1]} 17... b6 {[%clk 0:02:37.7]} 18. Rad1
{[%clk 0:02:41.8]} 18... Rbd8 {[%clk 0:02:37.3]} 19. c3 {[%clk 0:02:41.5]} 19...
Ne5 {[%clk 0:02:34.7]} 20. d4 {[%clk 0:02:25.3]} 20... cxd4 {[%clk 0:02:29.3]}
21. Qxd4 {[%clk 0:02:24.6]} 21... Qxd4 {[%clk 0:02:28.6]} 22. Rxd4 {[%clk
0:02:25.5]} 22... Rxd4 {[%clk 0:02:22.2]} 23. cxd4 {[%clk 0:02:24.5]} 23... Nd3
{[%clk 0:02:21.9]} 24. b3 {[%clk 0:02:16.2]} 24... Rc8 {[%clk 0:02:17.9]} 25.
Rd1 {[%clk 0:02:15.3]} 25... Rc1 {[%clk 0:02:09.4]} 26. Bf3 {[%clk 0:01:37.8]}
26... Rxd1+ {[%clk 0:02:09.4]} 27. Bxd1 {[%clk 0:01:38.7]} 27... Nb4 {[%clk
0:02:09.8]} 28. a4 {[%clk 0:01:36]} 28... Nc6 {[%clk 0:02:09.7]} 29. d5 {[%clk
0:01:36.2]} 29... exd5 {[%clk 0:02:09.5]} 30. Kf1 {[%clk 0:01:36.1]} 30... Kf6
{[%clk 0:02:09.5]} 31. Ke2 {[%clk 0:01:36.5]} 31... Ke5 {[%clk 0:02:10]} 32. Kd3
{[%clk 0:01:37]} 32... Nb4+ {[%clk 0:02:06]} 33. Kc3 {[%clk 0:01:34.9]} 33... a5
{[%clk 0:02:06.5]} 34. Bf3 {[%clk 0:01:32.7]} 34... Kd6 {[%clk 0:02:00.6]} 35.
Kd4 {[%clk 0:01:27.1]} 35... Nc6+ {[%clk 0:02:00.6]} 36. Kc3 {[%clk 0:01:24]}
36... Kc5 {[%clk 0:02:00.9]} 37. Be2 {[%clk 0:01:23]} 37... Nd4 {[%clk
0:01:46.8]} 38. Bd1 {[%clk 0:01:21.4]} 38... Nf5 {[%clk 0:01:41.4]} 39. Kd3
{[%clk 0:01:13.2]} 39... Nd6 {[%clk 0:01:39.8]} 40. f3 {[%clk 0:01:11.5]} 40...
Nf5 {[%clk 0:01:39.1]} 41. g4 {[%clk 0:01:09.6]} 41... hxg4 {[%clk 0:01:36.1]}
42. fxg4 {[%clk 0:01:08.8]} 42... Nxh4 {[%clk 0:01:36.1]} 43. Ke3 {[%clk
0:01:08.9]} 43... g5 {[%clk 0:01:34.4]} 44. Bc2 {[%clk 0:00:50.6]} 44... Ng2+
{[%clk 0:01:31.7]} 0-1